fUSD/lending_fUSD_20250112
["ID","MTS","AMOUNT","RATE_DAILY","PERIOD"]
[348674153,1736707842000,-500.0,9.817e-05,2]
[348674154,1736707842010,-1131.93374142,0.0001,2]
[348674155,1736707842123,-8108.68791628,0.0001,2]
[348674156,1736707842141,-1205.15468349,0.0001,2]
[348674157,1736707842152,-4382.33663193,0.0001,2]
[348674158,1736707842169,-728.44999844,0.0001,2]
[348674159,1736707842208,-1030.13657031,0.0001,2]
[348674160,1736707842219,-32234.16470284,0.0001,2]
[348674164,1736707842456,-500.0,9.54e-05,2]
[348674165,1736707842466,-500.0,9.541e-05,2]
[348674166,1736707842476,-502.93399887,9.753e-05,2]
[348674167,1736707842486,-500.0,9.815e-05,2]
[348674168,1736707842495,-500.0,9.816e-05,2]
[348674169,1736707842504,-3570.746708,0.0001,2]
[348674170,1736707842526,-4854.40507874,0.0001,2]
[348674171,1736707842575,-562.95,9.814e-05,2]
[348674172,1736707842584,-5763.64401663,0.0001,2]
[348674173,1736707842596,-986.51999999,0.0001,2]
[348674174,1736707842607,-89951.57973415,0.0001,2]
[348674175,1736707842624,-20048.31611999,0.0001,2]
[348674176,1736707842663,-364.5618248,0.0001,2]
[348674181,1736707843088,-4584.2756899,9.653e-05,2]
[348674183,1736707843104,-415.7243101,9.653e-05,2]
[348674184,1736707843114,-500.0,9.753e-05,2]
[348674185,1736707843123,-5813.6756899,0.0001,2]
[348674186,1736707843135,-687.94347,0.0001,2]
[348674187,1736707843147,-152181.93907555,0.0001,2]
[348674188,1736707843176,-76938.81568926,0.0001,2]
[348674189,1736707843188,-17767.93427304,0.0001,2]
[348674190,1736707843199,-26631.96964076,0.0001,2]
[348674191,1736707843214,-661.57835292,0.0001,2]
[348674192,1736707843226,-2697.17970122,0.0001,2]
[348674193,1736707843237,-8400.0000004,0.0001,2]
[348674194,1736707843261,-1857836.47491288,0.0001,2]
[348674195,1736707843272,-2239.10260521,0.0001,2]
[348674196,1736707843290,-1254.32754042,0.0001,2]
[348674197,1736707843300,-3644.61042764,0.0001,2]
[348674198,1736707843312,-779404.25837684,0.0001,2]
[348674206,1736707845602,-263.93844234,9.541e-05,2]
[348674207,1736707845613,-236.06155766,9.541e-05,2]
[348674208,1736707845624,-1158.18844234,9.541e-05,2]
[348674209,1736707845635,-179.90155766,9.541e-05,2]
[348674210,1736707845644,-102.92827534,9.753e-05,2]
[348674211,1736707845660,-256.09224003,9.753e-05,2]
[348674212,1736707845673,-140.97948463,9.753e-05,2]
[348674213,1736707845683,-500.0,9.815e-05,2]
[348674214,1736707845692,-1338.09,9.815e-05,2]
[348674215,1736707845702,-7538.98390921,0.0001,2]
[348674216,1736707845715,-1056.34317,0.0001,2]
[348674217,1736707845727,-466.43999997,0.0001,2]
[348674218,1736707845747,-806.10305064,0.0001,2]
[348674219,1736707845758,-62183.76190691,0.0001,2]
[348674220,1736707845769,-58177.75366438,0.0001,2]
[348674221,1736707845794,-3595.97560538,0.0001,2]
[348674222,1736707845806,-1526.43607782,0.0001,2]
[348674223,1736707845817,-4144.86206469,0.0001,2]
[348674224,1736707845828,-2291.851,0.0001,2]
[348674225,1736707845839,-370.802921,0.0001,2]
[348674226,1736707845862,-594339.05101655,0.0001,2]
[348674227,1736707845874,-12610.86382,0.0001,2]
[348674228,1736707845886,-1747.8,0.0001,2]
[348674229,1736707845898,-1920.0,0.0001,2]
[348674230,1736707845910,-3658.55757206,0.0001,2]
[348674231,1736707845925,-27045.5275716,0.0001,2]
[348674232,1736707845944,-3946.738361,0.0001,2]
[348674233,1736707845956,-3222.3,0.0001,2]
[348674264,1736708390783,801.85,8.219e-05,2]
[348674266,1736708611406,-150.0,0.000122,30]
[348674267,1736708611465,-2231.67,0.000123,31]
[348674268,1736708611747,-2231.67,0.000123,31]
[348674269,1736708611783,-2231.67,0.000123,31]
[348674270,1736708611818,-2231.67,0.000123,31]
[348674271,1736708611854,-2231.67,0.000123,31]
[348674272,1736708611890,-2231.67,0.000123,31]
[348674273,1736708611926,-2231.67,0.000123,31]
[348674274,1736708611964,-2231.67,0.000123,31]
[348674275,1736708612000,-2231.67,0.000123,31]
[348674276,1736708612036,-2231.67,0.000123,31]
[348674277,1736708612073,-2231.67,0.000123,31]
[348674278,1736708612108,-2231.67,0.000123,31]
[348674279,1736708612143,-2231.67,0.000123,31]
[348674280,1736708612178,-2231.67,0.000123,31]
[348674281,1736708612215,-2231.67,0.000123,31]
[348674282,1736708612250,-2231.67,0.000123,31]
[348674283,1736708642213,250.0,8.812e-05,2]
[348674284,1736708672996,1874.79,0.000123,31]
[348674285,1736708673058,1874.79,0.000123,31]
[348674286,1736708673114,1874.79,0.000123,31]
[348674287,1736708673176,1874.79,0.000123,31]
[348674288,1736708673233,1874.79,0.000123,31]
[348674289,1736708673295,1874.79,0.000123,31]
[348674290,1736708673357,1874.79,0.000123,31]
[348674291,1736708673429,1874.79,0.000123,31]
[348674292,1736708673488,1874.79,0.000123,31]
[348674293,1736708673544,1874.79,0.000123,31]
[348674294,1736708673603,1874.79,0.000123,31]
[348674295,1736708673673,1874.79,0.000123,31]
[348674296,1736708673720,1874.79,0.000123,31]
[348674297,1736708673779,1874.79,0.000123,31]
[348674298,1736708673848,1874.79,0.000123,31]
[348674299,1736708673902,1874.79,0.000123,31]
[348674309,1736708836585,398.37,8.745e-05,2]
[348674310,1736708972310,1000.0,8.721e-05,2]
[348674318,1736709031794,-170.33,9.08e-05,2]
[348674319,1736709031804,-375.72,9.09e-05,2]
[348674320,1736709031813,-255.18882567,9.107e-05,2]
[348674321,1736709031822,-206.70115761,9.107e-05,2]
[348674322,1736709031833,-16.22884239,9.107e-05,2]
[348674323,1736709031842,-300.0,9.2e-05,3]
[348674324,1736709031852,-700.0,9.3e-05,3]
[348674325,1736709031861,-1794.01339236,9.318e-05,2]
[348674326,1736709031870,-1100.0,9.4e-05,3]
[348674327,1736709031879,-1500.0,9.5e-05,3]
[348674328,1736709031888,-150.0,9.539e-05,2]
[348674329,1736709031897,-500.0,9.54e-05,2]
[348674330,1736709031907,-852.62,9.54e-05,2]
[348674331,1736709031916,-1533.28,9.54e-05,2]
[348674332,1736709031925,-906.98,9.54e-05,2]
[348674333,1736709031934,-662.47,9.54e-05,2]
[348674334,1736709031943,-747.947643,9.54e-05,2]
[348674335,1736709031953,-158.98037,9.54e-05,2]
[348674336,1736709031961,-3096.8,9.54e-05,2]
[348674337,1736709031971,-793.089038,9.54e-05,2]
[348674338,1736709031979,-672.5,9.54e-05,2]
[348674339,1736709031989,-218.786052,9.54e-05,2]
[348674340,1736709031998,-677.8,9.54e-05,2]
[348674341,1736709032007,-187.442608,9.54e-05,2]
[348674342,1736709032016,-704.37,9.54e-05,2]
[348674343,1736709032025,-150.829071,9.54e-05,2]
[348674344,1736709032034,-500.0,9.54e-05,2]
[348674345,1736709032043,-1088.46298325,9.54e-05,2]
[348674346,1736709032055,-2220.30701675,9.54e-05,2]
[348674347,1736709032064,-500.0,9.54e-05,2]
[348674348,1736709032074,-218.786043,9.54e-05,2]
[348674349,1736709032083,-500.0,9.54e-05,2]
[348674350,1736709032094,-500.0,9.54e-05,2]
[348674351,1736709032103,-574.64,9.54e-05,2]
[348674352,1736709032112,-157.059362,9.54e-05,2]
[348674353,1736709032122,-500.0,9.54e-05,2]
[348674354,1736709032131,-500.0,9.54e-05,2]
[348674355,1736709032140,-500.0,9.54e-05,2]
[348674356,1736709032149,-187.442606,9.54e-05,2]
[348674357,1736709032159,-500.0,9.54e-05,2]
[348674358,1736709032168,-710.37,9.54e-05,2]
[348674359,1736709032178,-500.0,9.54e-05,2]
[348674360,1736709032187,-500.0,9.54e-05,2]
[348674361,1736709032196,-941.34,9.54e-05,2]
[348674362,1736709032206,-620.73,9.54e-05,2]
[348674363,1736709032215,-500.0,9.54e-05,2]
[348674364,1736709032224,-500.0,9.54e-05,2]
[348674365,1736709032234,-500.0,9.54e-05,2]
[348674366,1736709032243,-500.0,9.54e-05,2]
[348674367,1736709032252,-501.66,9.54e-05,2]
[348674368,1736709032261,-500.0,9.54e-05,2]
[348674369,1736709032270,-500.0,9.54e-05,2]
[348674370,1736709032280,-500.0,9.54e-05,2]
[348674371,1736709032289,-500.0,9.54e-05,2]
[348674372,1736709032298,-500.0,9.54e-05,2]
[348674373,1736709032307,-500.0,9.54e-05,2]
[348674374,1736709032317,-500.0,9.54e-05,2]
[348674375,1736709032326,-500.0,9.54e-05,2]
[348674376,1736709032335,-500.0,9.54e-05,2]
[348674377,1736709032345,-500.0,9.54e-05,2]
[348674379,1736709032354,-518.52,9.54e-05,2]
[348674381,1736709032363,-562.63,9.54e-05,2]
[348674383,1736709032372,-633.36,9.54e-05,2]
[348674385,1736709032381,-856.86,9.54e-05,2]
[348674387,1736709032390,-500.0,9.54e-05,2]
[348674389,1736709032400,-500.0,9.54e-05,2]
[348674391,1736709032409,-500.0,9.54e-05,2]
[348674393,1736709032419,-500.0,9.54e-05,2]
[348674420,1736709032669,-500.0,9.54e-05,2]
[348674423,1736709032679,-1194.5,9.54e-05,2]
[348674424,1736709032688,-500.0,9.54e-05,2]
[348674427,1736709032698,-862.72,9.54e-05,2]
[348674429,1736709032707,-148.3888323,9.54e-05,2]
[348674431,1736709032719,-611.4811677,9.54e-05,2]
[348674433,1736709032728,-1565.08,9.54e-05,2]
[348674435,1736709032737,-851.14,9.54e-05,2]
[348674437,1736709032746,-895.43,9.54e-05,2]
[348674439,1736709032755,-580.8847743,9.54e-05,2]
[348674441,1736709032766,-474.7452257,9.54e-05,2]
[348674443,1736709032775,-500.0,9.54e-05,2]
[348674445,1736709032784,-500.0,9.54e-05,2]
[348674447,1736709032793,-500.0,9.54e-05,2]
[348674449,1736709032802,-500.0,9.54e-05,2]
[348674451,1736709032811,-500.0,9.54e-05,2]
[348674453,1736709032821,-2218.53,9.54e-05,2]
[348674455,1736709032830,-500.0,9.54e-05,2]
[348674457,1736709032839,-500.0,9.54e-05,2]
[348674459,1736709032848,-500.0,9.54e-05,2]
[348674461,1736709032857,-1246.57,9.54e-05,2]
[348674463,1736709032866,-500.0,9.54e-05,2]
[348674465,1736709032875,-500.0,9.54e-05,2]
[348674467,1736709032884,-500.0,9.54e-05,2]
[348674469,1736709032893,-587.96,9.54e-05,2]
[348674471,1736709032903,-3022.45,9.54e-05,2]
[348674473,1736709032911,-500.0,9.54e-05,2]
[348674475,1736709032920,-3560.6,9.54e-05,2]
[348674476,1736709032929,-508.5,9.54e-05,2]
[348674478,1736709032939,-609.66,9.54e-05,2]
[348674480,1736709032948,-666.21,9.54e-05,2]
[348674482,1736709032957,-500.0,9.54e-05,2]
[348674484,1736709032967,-549.39,9.54e-05,2]
[348674486,1736709032976,-500.0,9.54e-05,2]
[348674488,1736709032985,-500.0,9.54e-05,2]
[348674490,1736709032994,-1451.52,9.54e-05,2]
[348674492,1736709033003,-500.0,9.54e-05,2]
[348674494,1736709033012,-500.0,9.54e-05,2]
[348674496,1736709033022,-500.0,9.54e-05,2]
[348674498,1736709033031,-500.0,9.54e-05,2]
[348674500,1736709033040,-775.84,9.54e-05,2]
[348674502,1736709033049,-533.68,9.54e-05,2]
[348674504,1736709033059,-2572.06,9.54e-05,2]
[348674506,1736709033068,-736.09,9.54e-05,2]
[348674508,1736709033077,-817.24,9.54e-05,2]
[348674510,1736709033086,-500.0,9.54e-05,2]
[348674512,1736709033096,-500.0,9.54e-05,2]
[348674514,1736709033105,-550.14,9.54e-05,2]
[348674516,1736709033115,-196.70958851,9.541e-05,2]
[348674518,1736709033127,-291.53175654,9.541e-05,2]
[348674520,1736709033136,-182.74487027,9.541e-05,2]
[348674524,1736709033163,-317.25512973,9.541e-05,2]
[348674526,1736709033172,-500.0,9.541e-05,2]
[348674528,1736709033182,-500.0,9.541e-05,2]
[348674530,1736709033191,-500.0,9.541e-05,2]
[348674532,1736709033202,-500.0,9.541e-05,2]
[348674534,1736709033211,-500.0,9.541e-05,2]
[348674535,1736709033220,-500.0,9.541e-05,2]
[348674537,1736709033229,-494.41809416,9.541e-05,2]
[348674539,1736709033239,-500.0,9.541e-05,2]
[348674541,1736709033248,-500.0,9.541e-05,2]
[348674543,1736709033258,-500.0,9.541e-05,2]
[348674546,1736709033269,-500.0,9.541e-05,2]
[348674547,1736709033278,-500.0,9.541e-05,2]
[348674549,1736709033288,-500.0,9.541e-05,2]
[348674551,1736709033298,-500.0,9.541e-05,2]
[348674553,1736709033307,-500.0,9.541e-05,2]
[348674555,1736709033317,-500.0,9.541e-05,2]
[348674557,1736709033326,-500.0,9.541e-05,2]
[348674559,1736709033336,-500.0,9.541e-05,2]
[348674561,1736709033345,-500.0,9.541e-05,2]
[348674563,1736709033355,-500.0,9.541e-05,2]
[348674565,1736709033364,-500.0,9.541e-05,2]
[348674567,1736709033374,-500.0,9.541e-05,2]
[348674569,1736709033383,-500.0,9.541e-05,2]
[348674571,1736709033392,-500.0,9.541e-05,2]
[348674573,1736709033401,-500.0,9.541e-05,2]
[348674574,1736709033411,-500.0,9.541e-05,2]
[348674577,1736709033421,-500.0,9.541e-05,2]
[348674579,1736709033430,-531.38,9.541e-05,2]
[348674580,1736709033440,-500.0,9.541e-05,2]
[348674582,1736709033449,-502.53678765,9.541e-05,2]
[348674584,1736709033459,-500.0,9.541e-05,2]
[348674586,1736709033468,-500.0,9.541e-05,2]
[348674588,1736709033478,-500.0,9.541e-05,2]
[348674590,1736709033487,-505.92971405,9.541e-05,2]
[348674592,1736709033497,-500.99339069,9.541e-05,2]
[348674594,1736709033506,-502.28783497,9.541e-05,2]
[348674596,1736709033516,-500.0,9.541e-05,2]
[348674598,1736709033530,-501.24449055,9.541e-05,2]
[348674600,1736709033539,-275.04007865,9.541e-05,2]
[348674602,1736709033549,-500.0,9.541e-05,2]
[348674604,1736709033558,-152.14533104,9.541e-05,2]
[348674606,1736709033569,-500.0,9.541e-05,2]
[348674608,1736709033578,-500.0,9.541e-05,2]
[348674610,1736709033587,-500.0,9.541e-05,2]
[348674612,1736709033597,-500.0,9.541e-05,2]
[348674614,1736709033608,-500.0,9.541e-05,2]
[348674616,1736709033617,-500.0,9.541e-05,2]
[348674618,1736709033627,-500.0,9.541e-05,2]
[348674620,1736709033636,-943.45,9.542e-05,2]
[348674622,1736709033645,-890.95,9.542e-05,2]
[348674624,1736709033654,-867.41,9.542e-05,2]
[348674626,1736709033663,-838.4,9.542e-05,2]
[348674628,1736709033672,-1928.82,9.542e-05,2]
[348674630,1736709033682,-500.0,9.542e-05,2]
[348674632,1736709033691,-1308.66,9.542e-05,2]
[348674634,1736709033701,-1246.38,9.542e-05,2]
[348674636,1736709033710,-500.0,9.542e-05,2]
[348674637,1736709033720,-1462.07,9.542e-05,2]
[348674638,1736709033729,-820.09,9.542e-05,2]
[348674639,1736709033739,-1615.37,9.542e-05,2]
[348674640,1736709033749,-1253.02,9.542e-05,2]
[348674641,1736709033758,-1163.34,9.542e-05,2]
[348674642,1736709033768,-2339.18,9.542e-05,2]
[348674643,1736709033778,-1216.68,9.542e-05,2]
[348674644,1736709033788,-1496.42,9.542e-05,2]
[348674645,1736709033797,-4996.32,9.542e-05,2]
[348674646,1736709033807,-825.35,9.542e-05,2]
[348674647,1736709033816,-3577.75,9.542e-05,2]
[348674648,1736709033826,-874.6,9.542e-05,2]
[348674649,1736709033836,-1000.0,9.542e-05,2]
[348674650,1736709033845,-1284.97,9.542e-05,2]
[348674651,1736709033855,-1163.84,9.542e-05,2]
[348674652,1736709033864,-618.35,9.542e-05,2]
[348674653,1736709033874,-500.0,9.542e-05,2]
[348674654,1736709033884,-2440.81,9.542e-05,2]
[348674655,1736709033893,-2322.81,9.542e-05,2]
[348674656,1736709033903,-1200.97,9.542e-05,2]
[348674657,1736709033912,-765.36,9.542e-05,2]
[348674658,1736709033921,-1746.58,9.543e-05,2]
[348674659,1736709033932,-454.0,9.562e-05,2]
[348674660,1736709033941,-150.0,9.57e-05,2]
[348674661,1736709033951,-150.0,9.57e-05,2]
[348674662,1736709033960,-150.0,9.57e-05,2]
[348674663,1736709033970,-150.0,9.57e-05,2]
[348674664,1736709033979,-1900.0,9.6e-05,3]
[348674665,1736709033988,-300.0,9.7e-05,3]
[348674666,1736709033998,-610.7669033,9.707e-05,2]
[348674667,1736709034007,-5000.0,9.713e-05,2]
[348674668,1736709034017,-1000.0,9.713e-05,2]
[348674669,1736709034027,-2435.3914,9.713e-05,2]
[348674670,1736709034036,-500.0,9.753e-05,2]
[348674671,1736709034046,-500.0,9.753e-05,2]
[348674672,1736709034055,-500.0,9.753e-05,2]
[348674673,1736709034065,-368.4030658,9.753e-05,2]
[348674674,1736709034075,-500.0,9.753e-05,2]
[348674675,1736709034084,-500.0,9.753e-05,2]
[348674676,1736709034095,-500.0,9.753e-05,2]
[348674677,1736709034105,-265.14643546,9.753e-05,2]
[348674678,1736709034114,-500.0,9.753e-05,2]
[348674679,1736709034124,-560.61097573,9.753e-05,2]
[348674680,1736709034133,-155.83015922,9.753e-05,2]
[348674681,1736709034143,-500.0,9.753e-05,2]
[348674682,1736709034152,-500.0,9.753e-05,2]
[348674683,1736709034162,-500.0,9.753e-05,2]
[348674684,1736709034172,-500.0,9.753e-05,2]
[348674685,1736709034181,-500.0,9.753e-05,2]
[348674686,1736709034191,-643.93,9.753e-05,2]
[348674687,1736709034200,-500.0,9.753e-05,2]
[348674688,1736709034210,-500.0,9.753e-05,2]
[348674689,1736709034219,-1265.46,9.753e-05,2]
[348674690,1736709034229,-500.0,9.753e-05,2]
[348674691,1736709034239,-840.79,9.753e-05,2]
[348674692,1736709034248,-1961.09,9.753e-05,2]
[348674693,1736709034258,-300.0,9.8e-05,3]
[348674694,1736709034267,-1000.0,9.811e-05,2]
[348674695,1736709034277,-1933.35,9.812e-05,2]
[348674696,1736709034286,-1972.74,9.812e-05,2]
[348674697,1736709034296,-1224.98,9.812e-05,2]
[348674698,1736709034305,-641.69,9.812e-05,2]
[348674699,1736709034315,-806.89,9.812e-05,2]
[348674700,1736709034325,-2040.61,9.812e-05,2]
[348674701,1736709034335,-775.0,9.812e-05,2]
[348674702,1736709034345,-500.0,9.812e-05,2]
[348674703,1736709034354,-510.73,9.812e-05,2]
[348674704,1736709034364,-529.64,9.812e-05,2]
[348674705,1736709034373,-857.68,9.812e-05,2]
[348674706,1736709034382,-500.0,9.812e-05,2]
[348674707,1736709034392,-1258.44,9.812e-05,2]
[348674708,1736709034401,-1258.44,9.812e-05,2]
[348674709,1736709034414,-500.0,9.812e-05,2]
[348674710,1736709034423,-1105.36,9.812e-05,2]
[348674711,1736709034432,-632.21,9.812e-05,2]
[348674712,1736709034442,-1681.65,9.812e-05,2]
[348674713,1736709034452,-500.0,9.812e-05,2]
[348674714,1736709034462,-500.0,9.812e-05,2]
[348674715,1736709034471,-500.0,9.812e-05,2]
[348674716,1736709034481,-500.0,9.812e-05,2]
[348674717,1736709034490,-500.0,9.812e-05,2]
[348674718,1736709034500,-919.96,9.812e-05,2]
[348674719,1736709034509,-500.0,9.812e-05,2]
[348674720,1736709034519,-505.849332,9.813e-05,2]
[348674721,1736709034532,-500.0,9.813e-05,2]
[348674722,1736709034541,-500.0,9.813e-05,2]
[348674723,1736709034551,-500.0,9.813e-05,2]
[348674724,1736709034560,-500.0,9.813e-05,2]
[348674725,1736709034570,-500.0,9.813e-05,2]
[348674726,1736709034579,-623.93,9.813e-05,2]
[348674727,1736709034588,-500.0,9.813e-05,2]
[348674728,1736709034597,-500.0,9.813e-05,2]
[348674729,1736709034607,-500.0,9.813e-05,2]
[348674730,1736709034616,-276.37759194,9.813e-05,2]
[348674731,1736709034625,-500.0,9.813e-05,2]
[348674732,1736709034634,-500.0,9.813e-05,2]
[348674733,1736709034643,-500.0,9.813e-05,2]
[348674734,1736709034653,-500.0,9.813e-05,2]
[348674735,1736709034663,-500.0,9.813e-05,2]
[348674736,1736709034672,-500.0,9.813e-05,2]
[348674737,1736709034681,-500.0,9.813e-05,2]
[348674738,1736709034690,-500.0,9.813e-05,2]
[348674739,1736709034700,-500.0,9.813e-05,2]
[348674740,1736709034709,-501.57172581,9.813e-05,2]
[348674741,1736709034719,-631.97,9.813e-05,2]
[348674742,1736709034728,-500.0,9.813e-05,2]
[348674743,1736709034737,-500.0,9.813e-05,2]
[348674744,1736709034746,-161.24552455,9.813e-05,2]
[348674745,1736709034755,-500.0,9.813e-05,2]
[348674746,1736709034765,-500.0,9.813e-05,2]
[348674747,1736709034774,-500.0,9.813e-05,2]
[348674748,1736709034783,-500.0,9.813e-05,2]
[348674749,1736709034792,-500.0,9.813e-05,2]
[348674750,1736709034801,-500.0,9.813e-05,2]
[348674751,1736709034810,-500.0,9.813e-05,2]
[348674752,1736709034820,-500.0,9.813e-05,2]
[348674753,1736709034829,-500.0,9.813e-05,2]
[348674754,1736709034838,-502.95954897,9.813e-05,2]
[348674755,1736709034848,-551.2,9.813e-05,2]
[348674756,1736709034859,-500.0,9.813e-05,2]
[348674757,1736709034868,-500.0,9.813e-05,2]
[348674758,1736709034878,-500.0,9.813e-05,2]
[348674759,1736709034890,-500.0,9.813e-05,2]
[348674760,1736709034899,-196.06568716,9.813e-05,2]
[348674761,1736709034908,-500.0,9.813e-05,2]
[348674762,1736709034918,-500.0,9.813e-05,2]
[348674763,1736709034929,-504.17217169,9.813e-05,2]
[348674764,1736709034939,-535.39,9.813e-05,2]
[348674765,1736709034948,-500.0,9.813e-05,2]
[348674766,1736709034957,-500.0,9.813e-05,2]
[348674767,1736709034967,-500.0,9.813e-05,2]
[348674768,1736709034976,-500.0,9.813e-05,2]
[348674769,1736709034985,-500.0,9.813e-05,2]
[348674770,1736709034995,-520.67,9.813e-05,2]
[348674771,1736709035005,-500.0,9.813e-05,2]
[348674772,1736709035014,-548.67,9.813e-05,2]
[348674773,1736709035024,-500.0,9.813e-05,2]
[348674774,1736709035033,-500.0,9.813e-05,2]
[348674775,1736709035043,-500.0,9.813e-05,2]
[348674776,1736709035053,-500.0,9.813e-05,2]
[348674777,1736709035062,-500.0,9.813e-05,2]
[348674778,1736709035071,-638.5,9.813e-05,2]
[348674779,1736709035081,-500.0,9.813e-05,2]
[348674780,1736709035091,-500.0,9.813e-05,2]
[348674781,1736709035103,-500.0,9.813e-05,2]
[348674782,1736709035114,-500.0,9.813e-05,2]
[348674783,1736709035124,-500.0,9.813e-05,2]
[348674784,1736709035134,-500.0,9.813e-05,2]
[348674785,1736709035144,-500.0,9.813e-05,2]
[348674786,1736709035155,-500.0,9.813e-05,2]
[348674787,1736709035164,-500.0,9.813e-05,2]
[348674788,1736709035173,-500.0,9.813e-05,2]
[348674789,1736709035184,-628.83,9.813e-05,2]
[348674790,1736709035194,-806.86,9.813e-05,2]
[348674791,1736709035204,-500.0,9.813e-05,2]
[348674792,1736709035213,-500.0,9.813e-05,2]
[348674793,1736709035223,-500.0,9.813e-05,2]
[348674794,1736709035234,-500.0,9.813e-05,2]
[348674795,1736709035243,-500.0,9.813e-05,2]
[348674796,1736709035253,-500.0,9.813e-05,2]
[348674797,1736709035263,-483.46269313,9.813e-05,2]
[348674798,1736709035274,-500.0,9.813e-05,2]
[348674799,1736709035283,-500.0,9.813e-05,2]
[348674800,1736709035293,-645.67,9.813e-05,2]
[348674801,1736709035302,-500.0,9.813e-05,2]
[348674802,1736709035312,-500.0,9.813e-05,2]
[348674803,1736709035321,-500.0,9.813e-05,2]
[348674804,1736709035334,-500.0,9.813e-05,2]
[348674805,1736709035343,-500.0,9.813e-05,2]
[348674806,1736709035352,-500.0,9.813e-05,2]
[348674807,1736709035362,-592.59,9.813e-05,2]
[348674808,1736709035371,-500.0,9.813e-05,2]
[348674809,1736709035381,-500.0,9.813e-05,2]
[348674810,1736709035391,-500.0,9.813e-05,2]
[348674811,1736709035400,-500.0,9.813e-05,2]
[348674812,1736709035410,-500.0,9.813e-05,2]
[348674813,1736709035420,-500.0,9.813e-05,2]
[348674814,1736709035429,-500.0,9.813e-05,2]
[348674815,1736709035440,-500.0,9.813e-05,2]
[348674816,1736709035450,-500.0,9.813e-05,2]
[348674817,1736709035459,-500.0,9.813e-05,2]
[348674818,1736709035469,-500.0,9.813e-05,2]
[348674819,1736709035478,-500.0,9.813e-05,2]
[348674820,1736709035487,-681.67,9.813e-05,2]
[348674821,1736709035497,-500.0,9.813e-05,2]
[348674822,1736709035506,-500.0,9.813e-05,2]
[348674823,1736709035516,-500.0,9.813e-05,2]
[348674824,1736709035528,-693.36,9.813e-05,2]
[348674825,1736709035538,-500.0,9.813e-05,2]
[348674826,1736709035549,-753.63,9.813e-05,2]
[348674827,1736709035559,-534.92,9.813e-05,2]
[348674828,1736709035571,-500.0,9.813e-05,2]
[348674829,1736709035580,-500.0,9.813e-05,2]
[348674830,1736709035590,-500.0,9.813e-05,2]
[348674831,1736709035599,-500.0,9.813e-05,2]
[348674832,1736709035611,-622.5,9.813e-05,2]
[348674833,1736709035622,-500.0,9.813e-05,2]
[348674834,1736709035631,-624.94,9.813e-05,2]
[348674835,1736709035641,-500.0,9.813e-05,2]
[348674836,1736709035651,-500.0,9.813e-05,2]
[348674837,1736709035660,-500.0,9.813e-05,2]
[348674838,1736709035669,-500.0,9.813e-05,2]
[348674839,1736709035679,-500.0,9.813e-05,2]
[348674840,1736709035688,-500.0,9.813e-05,2]
[348674841,1736709035699,-812.9,9.813e-05,2]
[348674842,1736709035708,-500.0,9.813e-05,2]
[348674843,1736709035718,-500.0,9.813e-05,2]
[348674844,1736709035727,-500.0,9.813e-05,2]
[348674845,1736709035737,-609.2,9.813e-05,2]
[348674846,1736709035747,-500.0,9.813e-05,2]
[348674847,1736709035759,-500.0,9.813e-05,2]
[348674848,1736709035770,-500.0,9.813e-05,2]
[348674849,1736709035779,-500.0,9.813e-05,2]
[348674850,1736709035789,-575.09,9.813e-05,2]
[348674851,1736709035798,-500.0,9.813e-05,2]
[348674852,1736709035808,-500.0,9.813e-05,2]
[348674853,1736709035818,-500.0,9.813e-05,2]
[348674854,1736709035827,-535.31,9.813e-05,2]
[348674855,1736709035837,-500.0,9.813e-05,2]
[348674856,1736709035846,-520.51,9.813e-05,2]